[Event "CRO-ch 2019"]
[Site "Bjelovar"]
[Date "2019.04.11"]
[Round "11.6"]
[White "Kurajica, Bojan"]
[Black "Brkic, Ante"]
[Result "1/2-1/2"]
[ECO "A06"]
[WhiteElo "2522"]
[BlackElo "2560"]
[Annotator "RC"]
[PlyCount "123"]
[EventDate "2019.04.01"]
[EventType "tourn"]
[EventCountry "CRO"]
[SourceTitle "playchess.com"]
[Source "ChessBase"]
[SourceQuality "1"]
[TimeControl "40/5400+30:1800+30"]

1. Nf3 {[%emt 0:00:30]} d5 {[%emt 0:00:30]} 2. b3 {[%emt 0:00:00]} c5 {[%emt 0:03:30]} 3. e3 {[%emt 0:00:00]} Nf6 {[%emt 0:01:30]} 4. Bb2 {[%emt 0:00:30]} e6 {[%emt 0:00:30]} 5. Bb5+ {[%emt 0:00:30]} Bd7 {[%emt 0:00:30]} 6. Bxd7+ {[%emt 0:01:30]} Nbxd7 {[%emt 0:00:30]} 7. c4 {[%emt 0:01:30]} Be7 {[%emt 0:10:30]} 8. O-O {[%emt 0:03:30]} O-O {[%emt 0:01:30]} 9. Nc3 {[%emt 0:03:30]} Rc8 {[%emt 0:00:30]} 10. Qe2 {[%emt 0:06:30]} dxc4 {[%emt 0:28:30]} 11. bxc4 {[%emt 0:00:00]} a6 {[%emt 0:00:30]} 12. Rab1 {[%emt 0:10:00]} Qc7 {[%emt 0:00:30]} 13. Ba1 {[%emt 0:08:30]} Bd6 {[%emt 0:08:30]} 14. d3 {[%emt 0:01:30]} Qc6 {[%emt 0:08:30]} 15. Rb3 {[%emt 0:05:30]} b6 {[%emt 0:01:30]} 16. Rfb1 {[%emt 0:06:30]} Bc7 {[%emt 0:01:30]} 17. h3 {[%emt 0:04:30]} Rfd8 {[%emt 0:05:30]} 18. Ne1 {[%emt 0:04:30]} Qd6 {[%emt 0:01:30]} 19. g3 {[%emt 0:02:30]} Qc6 {[%emt 0:03:30]} 20. f4 {[%emt 0:03:30]} e5 {[%emt 0:01:04]} 21. Qf3 {[%emt 0:00:30]} Qd6 {[%emt 0:01:10]} 22. Kg2 {[%emt 0:00:30]} Re8 {[%emt 0:01:34]} 23. R3b2 {[%emt 0:06:30]} Nf8 {[%emt 0:10:14]} 24. f5 {[%emt 0:07:30]} e4 {[%emt 0:00:37]} 25. dxe4 {[%emt 0:01:30]} N8d7 {[%emt 0:00:04]} 26. Rd1 {[%emt 0:01:30]} Qe7 {[%emt 0:00:11]} 27. Rbd2 {[%emt 0:02:47]} Ne5 {[%emt 0:00:13]} 28. Qe2 {[%emt 0:02:10]} Nc6 {[%emt 0:00:02]} 29. Nd5 {[%emt 0:01:17]} Qxe4+ {[%emt 0:00:56]} 30. Qf3 {[%emt 0:00:13]} Bd8 {[%emt 0:03:37]} 31. Bxf6 {[%emt 0:00:15]} gxf6 {[%emt 0:00:44]} 32. Rc1 {[%emt 0:03:45]} Qxf3+ {[%emt 0:02:39]} 33. Nxf3 {[%emt 0:00:14]} Nb4 {[%emt 0:00:03]} 34. Kf2 {[%emt 0:02:38]} Re4 {[%emt 0:00:22]} 35. Nf4 {[%emt 0:03:21]} Nc6 {[%emt 0:01:07]} 36. Rd7 {[%emt 0:01:54]} Kf8 {[%emt 0:02:50]} 37. Nd5 {[%emt 0:03:21]} Nb4 {[%emt 0:00:06]} 38. Rd1 {[%emt 0:00:57]} Nxd5 {[%emt 0:00:52]} 39. R1xd5 {[%emt 0:01:17]} Bc7 {[%emt 0:00:25]} 40. Nd2 {[%emt 0:00:00]} Re7 {[%emt 0:00:00]} 41. a4 {[%emt 0:05:21]} Ke8 {[%emt 0:04:10]} 42. Rxe7+ {[%emt 0:00:30]} Kxe7 {[%emt 0:00:00]} 43. Ne4 {[%emt 0:02:30]} Be5 {[%emt 0:07:00]} 44. g4 {[%emt 0:04:30]} h6 {[%emt 0:01:30]} 45. Rd1 {[%emt 0:04:11]} Rb8 {[%emt 0:05:38]} 46. Kf3 {[%emt 0:00:46]} Rh8 {[%emt 0:09:20]} 47. h4 {[%emt 0:03:25]} Rb8 {[%emt 0:00:05]} 48. Rd3 {[%emt 0:06:02]} b5 {[%emt 0:03:57]} 49. axb5 {[%emt 0:04:22]} axb5 {[%emt 0:00:01]} 50. cxb5 {[%emt 0:00:06]} Rxb5 {[%emt 0:01:37]} 51. Rd5 {[%emt 0:00:13]} Rb3 {[%emt 0:01:33]} 52. Nxc5 {[%emt 0:01:40]} Rb5 {[%emt 0:00:07]} 53. e4 {[%emt 0:00:15]} Bd6 {[%emt 0:01:22]} 54. Nd3 {[%emt 0:00:05]} Rb1 {[%emt 0:00:18]} 55. Ra5 {[%emt 0:02:02]} Rh1 {[%emt 0:00:16]} 56. g5 {[%emt 0:00:55]} Rh3+ {[%emt 0:01:51]} 57. Ke2 {[%emt 0:00:03]} Rxh4 {[%emt 0:00:31]} 58. gxf6+ {[%emt 0:00:14]} Kxf6 {[%emt 0:00:07]} 59. e5+ {[%emt 0:01:51]} Bxe5 {[%emt 0:00:03]} 60. Rxe5 {[%emt 0:00:32]} Rh2+ {[%emt 0:00:57]} 61. Kd1 {[%emt 0:00:16]} Rh5 {[%emt 0:00:25]} 62. Ke2 {[%emt 0:01:42]} 1/2-1/2